bitfinex/quotes_BTCUSD_20250623
["timestamp","ask_amount","ask_price","bid_price","bid_amount"]
[1750677728863,1.43708284,101510.0,101500.0,0.0001]
[1750677729688,1.42723238,101510.0,101500.0,0.0001]
[1750677729893,1.43708275,101510.0,101500.0,0.0001]
[1750677730798,1.73581743,101510.0,101500.0,0.0001]
[1750677731004,1.72596687,101510.0,101500.0,0.0001]
[1750677732095,1.73581753,101510.0,101500.0,0.0001]
[1750677732316,1.72596687,101510.0,101500.0,0.0001]
[1750677732933,1.73581743,101510.0,101500.0,0.0001]
[1750677733350,1.44693331,101510.0,101500.0,0.0001]
[1750677733560,1.77626819,101510.0,101500.0,0.0001]
[1750677733764,1.21123599,101500.0,101490.0,0.0641]
[1750677733998,1.57215477,101500.0,101490.0,0.0641]
[1750677734399,1.60178977,101500.0,101490.0,0.0641]
[1750677734604,1.63158255,101500.0,101490.0,0.0641]
[1750677736011,1.63158255,101500.0,101490.0,0.0651]
[1750677736875,1.34269843,101500.0,101490.0,0.0651]
[1750677737730,1.83819843,101500.0,101490.0,0.0651]
[1750677738361,1.80840565,101500.0,101490.0,0.0651]
[1750677739947,1.70810626,101500.0,101490.0,0.0651]
[1750677743069,1.54778626,101500.0,101490.0,0.0651]
[1750677743285,1.74942626,101500.0,101490.0,0.0651]
[1750677744367,1.75042626,101500.0,101490.0,0.0651]
[1750677746154,1.75046626,101500.0,101490.0,0.0651]
[1750677746667,2.03935038,101500.0,101490.0,0.0651]
[1750677747321,1.75046626,101500.0,101490.0,0.0651]
[1750677748371,2.03935038,101500.0,101490.0,0.0651]
[1750677748793,2.13964977,101500.0,101490.0,0.0651]
[1750677750676,1.85076565,101500.0,101490.0,0.0651]
[1750677750932,2.03935038,101500.0,101490.0,0.0651]
[1750677751336,1.75046626,101500.0,101490.0,0.0651]
[1750677752262,1.76891772,101500.0,101490.0,0.0651]
[1750677752476,1.7689177,101500.0,101490.0,0.0651]
[1750677752934,1.92818182,101500.0,101490.0,0.001]
[1750677753184,1.92818182,101500.0,101450.0,0.0101]
[1750677753185,0.43336382,101470.0,101450.0,0.0101]
[1750677753412,0.43336382,101470.0,101440.0,0.0367]
[1750677753413,0.91776824,101450.0,101440.0,0.0367]
[1750677753650,1.17986763,101450.0,101440.0,0.0367]
[1750677754111,1.22795702,101450.0,101440.0,0.0367]
[1750677754368,0.93938392,101450.0,101440.0,0.0367]
[1750677754593,0.93947507,101450.0,101440.0,0.0367]
[1750677754806,0.59947507,101450.0,101440.0,0.0367]
[1750677755232,0.58203168,101450.0,101440.0,0.0367]
[1750677755675,0.29383654,101450.0,101440.0,0.0367]
[1750677755875,0.58303168,101450.0,101440.0,0.0367]
[1750677757184,0.67994398,101450.0,101440.0,0.0367]
[1750677757842,0.58760377,101450.0,101440.0,0.0367]
[1750677758730,1.21679891,101450.0,101440.0,0.004]
[1750677758941,1.21679891,101450.0,101440.0,0.0352]
[1750677759161,0.92760377,101450.0,101440.0,0.0352]
[1750677759640,1.21679891,101450.0,101440.0,0.0352]
[1750677760280,0.96948377,101450.0,101440.0,0.0352]
[1750677761147,1.06978316,101450.0,101440.0,0.0352]
[1750677761603,0.96948377,101450.0,101440.0,0.0352]
[1750677761825,0.96948377,101450.0,101440.0,0.0658]
[1750677762062,0.96944377,101450.0,101440.0,0.0658]
[1750677766017,0.96940377,101450.0,101440.0,0.0658]
[1750677768492,0.98772004,101450.0,101440.0,0.0658]
[1750677769177,0.96940377,101450.0,101440.0,0.0658]
[1750677769385,0.98771964,101450.0,101440.0,0.0658]
[1750677771791,0.78411964,101450.0,101440.0,0.0658]
[1750677772000,0.55010324,101450.0,101440.0,0.0658]
[1750677772201,0.29585838,101450.0,101440.0,0.0658]
[1750677772635,0.63585838,101450.0,101440.0,0.0658]
[1750677776309,0.34209115,101450.0,101440.0,0.0658]
[1750677776552,0.63128629,101450.0,101440.0,0.0658]
[1750677777984,0.34209115,101450.0,101440.0,0.0658]
[1750677779744,0.63128629,101450.0,101440.0,0.0658]
[1750677781363,0.34209115,101450.0,101440.0,0.0658]
[1750677781574,0.63128629,101450.0,101440.0,0.0658]
[1750677782172,0.63028629,101450.0,101440.0,0.0658]
[1750677782344,0.62928629,101450.0,101440.0,0.0658]
[1750677782554,0.62928629,101450.0,101440.0,0.0668]
[1750677782756,0.62928629,101450.0,101440.0,0.0678]
[1750677782966,0.64769468,101450.0,101440.0,0.0678]
[1750677784306,0.30760353,101450.0,101440.0,0.0678]
[1750677785149,0.3076017,101450.0,101440.0,0.0678]
[1750677785403,0.28919514,101450.0,101440.0,0.0678]
[1750677791137,0.3359026,101460.0,101450.0,0.0609]
[1750677791327,0.6951055,101460.0,101450.0,0.0609]
[1750677792364,0.6961055,101460.0,101450.0,0.0609]
[1750677792573,0.6971055,101460.0,101450.0,0.0609]
[1750677792987,0.3571055,101460.0,101450.0,0.0609]
[1750677793237,0.3571055,101460.0,101450.0,0.05631637]
[1750677793447,0.6971055,101460.0,101450.0,0.05631637]
[1750677793866,0.6550255,101460.0,101450.0,0.05631637]
[1750677794517,0.65502962,101460.0,101450.0,0.05631637]
[1750677794725,0.65402962,101460.0,101450.0,0.05631637]
[1750677794930,0.65302962,101460.0,101450.0,0.05631637]
[1750677795132,0.65302962,101460.0,101450.0,0.05831637]
[1750677797394,0.65303379,101460.0,101450.0,0.05831637]
[1750677797750,0.36383865,101460.0,101450.0,0.05831637]
[1750677797978,0.65303379,101460.0,101450.0,0.05831637]
[1750677799647,0.36383865,101460.0,101450.0,0.05831637]
[1750677799871,0.65303379,101460.0,101450.0,0.05831637]
[1750677802554,0.94222893,101460.0,101450.0,0.05831637]
[1750677802955,0.94225884,101460.0,101450.0,0.05831637]
[1750677804243,0.6530637,101460.0,101450.0,0.05831637]
[1750677804456,0.6522637,101460.0,101450.0,0.05831637]
[1750677804746,0.6530637,101460.0,101450.0,0.05831637]
[1750677805832,0.6346226,101460.0,101450.0,0.05831637]
[1750677806081,0.65306718,101460.0,101450.0,0.05831637]
[1750677808632,0.65306846,101460.0,101450.0,0.05831637]
[1750677809469,0.31306846,101460.0,101450.0,0.05831637]
[1750677809671,0.0008,101460.0,101450.0,0.46235175]
[1750677809886,0.0008,101460.0,101450.0,0.17315661]
[1750677810504,0.0008,101460.0,101450.0,0.17215661]
[1750677811353,0.0008,101460.0,101450.0,0.17315661]
[1750677811563,0.0008,101460.0,101450.0,0.17615661]
[1750677811774,0.0008,101460.0,101450.0,0.17415661]
[1750677812192,0.0008,101460.0,101450.0,0.18015661]
[1750677813301,0.0008,101460.0,101450.0,0.18315661]
[1750677813894,0.0008,101460.0,101450.0,0.18562043]
[1750677815667,0.0008,101460.0,101450.0,0.18315661]
[1750677815797,0.0008,101460.0,101450.0,0.18562043]
[1750677816005,0.0008,101460.0,101450.0,0.47481557]
[1750677816210,0.0008,101460.0,101450.0,0.47235175]
[1750677816426,0.0008,101460.0,101450.0,0.18315661]
[1750677816637,0.0008,101460.0,101450.0,0.18562042]
[1750677817278,0.0008,101460.0,101450.0,0.18315661]
[1750677817490,0.00084,101460.0,101450.0,0.18562042]
[1750677818122,0.00084,101460.0,101450.0,0.18315661]
[1750677821163,0.29003514,101460.0,101450.0,0.16861576]
[1750677821375,0.29003514,101460.0,101450.0,0.0426]
[1750677821581,0.57923028,101460.0,101450.0,0.012]
[1750677821789,0.59763573,101460.0,101450.0,0.012]
[1750677822013,0.63073573,101460.0,101450.0,0.012]
[1750677822270,0.66123573,101460.0,101450.0,0.012]
[1750677822489,0.66123672,101460.0,101450.0,0.012]
[1750677822721,0.64283028,101460.0,101450.0,0.012]
[1750677822946,0.66123672,101460.0,101450.0,0.012]
[1750677825520,0.64283028,101460.0,101450.0,0.012]
[1750677825745,0.66123768,101460.0,101450.0,0.012]
[1750677829524,0.0828474,101460.0,101450.0,0.012]
[1750677829757,0.66123768,101460.0,101450.0,0.012]
[1750677831299,0.66123706,101460.0,101450.0,0.012]
[1750677831731,0.30844192,101460.0,101450.0,0.012]
[1750677834165,0.30844193,101460.0,101450.0,0.012]
[1750677834584,0.30924193,101460.0,101450.0,0.012]
[1750677834809,0.34054193,101460.0,101450.0,0.012]
[1750677835025,0.96973707,101460.0,101450.0,0.012]
[1750677838129,0.34,101450.0,101440.0,0.004]
[1750677838342,0.0639,101430.0,101420.0,0.01]
[1750677838557,1.14433028,101430.0,101420.0,0.01046248]
[1750677838781,1.18569028,101430.0,101420.0,0.01046248]
[1750677839234,1.20407203,101430.0,101420.0,0.01046248]
[1750677839642,1.18569028,101430.0,101420.0,0.01046248]
[1750677839863,0.61975028,101430.0,101420.0,0.01046248]
[1750677840313,0.63812952,101430.0,101420.0,0.01046248]
[1750677840911,0.62275028,101430.0,101420.0,0.01046248]
[1750677841132,0.78175028,101430.0,101420.0,0.01046248]
[1750677841381,0.78775028,101430.0,101420.0,0.01146248]
[1750677842011,0.78975028,101430.0,101420.0,0.01146248]
[1750677842722,0.81883042,101430.0,101420.0,0.01146248]
[1750677842942,0.87423042,101430.0,101420.0,0.01146248]
[1750677843954,0.97452981,101430.0,101420.0,0.01146248]
[1750677844191,0.87423042,101430.0,101420.0,0.01146248]
[1750677844576,0.90388042,101430.0,101420.0,0.01146248]
[1750677844782,0.70052042,101430.0,101420.0,0.01146248]
[1750677844909,0.90380042,101430.0,101420.0,0.01146248]
[1750677848283,0.87870042,101430.0,101420.0,0.01146248]
[1750677848723,1.11425743,101430.0,101420.0,0.01146248]
[1750677848948,1.00469981,101430.0,101420.0,0.01146248]
[1750677851108,1.02304035,101430.0,101420.0,0.01146248]
[1750677852589,1.02292035,101430.0,101420.0,0.01146248]
[1750677853042,0.83109125,101430.0,101420.0,0.01146248]
[1750677853681,0.80599125,101430.0,101420.0,0.01146248]
[1750677854521,0.60223125,101430.0,101420.0,0.01146248]
[1750677854736,0.77565328,101430.0,101420.0,0.01146248]
[1750677856080,0.77565376,101430.0,101420.0,0.01146248]
[1750677858688,0.83205376,101430.0,101420.0,0.01146248]
[1750677859324,0.80695376,101430.0,101420.0,0.01146248]
[1750677860670,0.60323376,101430.0,101420.0,0.01146248]
[1750677860916,0.80679376,101430.0,101420.0,0.01146248]
[1750677863275,0.7755204,101430.0,101420.0,0.01146248]
[1750677866512,0.79906793,101430.0,101420.0,0.01146248]
[1750677866848,0.79906793,101430.0,101420.0,0.04376248]
[1750677867227,0.79911654,101430.0,101420.0,0.04376248]
[1750677867642,0.59555654,101430.0,101420.0,0.04376248]
[1750677867851,0.79895654,101430.0,101420.0,0.04376248]
[1750677868944,0.79896208,101430.0,101420.0,0.04376248]
[1750677870843,0.79896222,101430.0,101420.0,0.04376248]
[1750677871931,0.79896348,101430.0,101420.0,0.04376248]
[1750677874728,0.7989685,101430.0,101420.0,0.04376248]
[1750677878773,0.7989685,101430.0,101420.0,0.07456248]
[1750677879835,0.7982085,101430.0,101420.0,0.07456248]
[1750677880826,0.79821542,101430.0,101420.0,0.07456248]
[1750677881243,0.99004452,101430.0,101420.0,0.07456248]
[1750677882231,0.98996452,101430.0,101420.0,0.07456248]
[1750677882447,0.99011734,101430.0,101420.0,0.07456248]
[1750677882880,0.78755734,101430.0,101420.0,0.07456248]
[1750677883130,0.99007734,101430.0,101420.0,0.07456248]
[1750677883356,0.99007822,101430.0,101420.0,0.07456248]
[1750677883782,0.99007822,101430.0,101420.0,0.07451916]
[1750677884473,0.99013204,101430.0,101420.0,0.07451916]
[1750677885141,0.78761204,101430.0,101420.0,0.07451916]
[1750677885361,0.99009204,101430.0,101420.0,0.07451916]
[1750677885546,0.96654451,101430.0,101420.0,0.07451916]
[1750677886843,0.76406451,101430.0,101420.0,0.07451916]
[1750677887082,0.37446666,101430.0,101420.0,0.07451916]
[1750677887303,0.50577666,101430.0,101420.0,0.07451916]
[1750677887923,0.8273386,101430.0,101420.0,0.07451916]
[1750677888129,0.53804014,101430.0,101420.0,0.07451916]
[1750677888340,0.008,101430.0,101420.0,0.07451916]
[1750677888547,0.16892,101430.0,101420.0,0.07451916]
[1750677888759,0.45821846,101430.0,101420.0,0.07451916]
[1750677889435,0.16892,101430.0,101420.0,0.07451916]
[1750677890125,0.008,101430.0,101420.0,0.07451916]
[1750677890358,0.45821846,101430.0,101420.0,0.07451916]
[1750677893752,0.74751692,101430.0,101420.0,0.07451916]
[1750677895117,0.84781631,101430.0,101420.0,0.07451916]
[1750677895342,0.74751692,101430.0,101420.0,0.07451916]
[1750677897255,0.58659692,101430.0,101420.0,0.07451916]
[1750677897463,0.78899692,101430.0,101420.0,0.07451916]
[1750677900910,0.78899692,101430.0,101420.0,0.04371916]
[1750677901143,1.25888328,101430.0,101420.0,0.01141916]
[1750677901392,1.34603628,101430.0,101420.0,0.01141916]
[1750677901601,1.36443814,101430.0,101420.0,0.01141916]
[1750677901824,1.33933814,101430.0,101420.0,0.01141916]
[1750677903030,1.33933891,101430.0,101420.0,0.01141916]
[1750677904652,1.30693891,101430.0,101420.0,0.01141916]
[1750677905102,1.43555133,101430.0,101420.0,0.01141916]
[1750677905649,1.41045133,101430.0,101420.0,0.01141916]
[1750677906431,1.37765133,101430.0,101420.0,0.01141916]
[1750677906651,1.24757894,101430.0,101420.0,0.01141916]
[1750677907083,1.04529894,101430.0,101420.0,0.01141916]
[1750677907286,1.27827894,101430.0,101420.0,0.01141916]
[1750677908148,1.07599894,101430.0,101420.0,0.01141916]
[1750677908361,1.27827894,101430.0,101420.0,0.01141916]
[1750677908741,1.38843647,101430.0,101420.0,0.01141916]
[1750677908966,1.41353647,101430.0,101420.0,0.01141916]
[1750677909212,1.40367833,101430.0,101420.0,0.01141916]
[1750677909438,1.34788313,101430.0,101420.0,0.01141916]
[1750677909882,1.04530374,101430.0,101420.0,0.01141916]
[1750677910099,1.24738374,101430.0,101420.0,0.04291916]
[1750677910563,1.05904006,101430.0,101420.0,0.04291916]
[1750677911845,1.08869506,101430.0,101420.0,0.04291916]
[1750677913171,1.07028763,101430.0,101420.0,0.04291916]
[1750677913631,1.08869345,101430.0,101420.0,0.04291916]
[1750677916449,1.13599356,101430.0,101420.0,0.04291916]
[1750677918973,1.07028763,101430.0,101420.0,0.04291916]
[1750677919166,1.08869518,101430.0,101420.0,0.04291916]
[1750677919417,1.08869518,101430.0,101420.0,0.07621916]
[1750677919645,1.26903886,101430.0,101420.0,0.07621916]
[1750677920779,1.26907886,101430.0,101420.0,0.07621916]
[1750677920994,1.26907886,101430.0,101420.0,0.07617593]
[1750677921635,0.69048194,101430.0,101420.0,0.07617593]
[1750677921888,1.26907886,101430.0,101420.0,0.07617593]
[1750677922573,0.69048194,101430.0,101420.0,0.07617593]
[1750677922805,1.06695886,101430.0,101420.0,0.07617593]
[1750677923036,0.9797804,101430.0,101420.0,0.07617593]
[1750677923268,1.26907886,101430.0,101420.0,0.07617593]
[1750677923704,1.06695886,101430.0,101420.0,0.07617593]
[1750677923926,1.26907886,101430.0,101420.0,0.07617593]
[1750677924355,0.69048194,101430.0,101420.0,0.07617593]
[1750677924575,1.32507886,101430.0,101420.0,0.01137593]
[1750677924782,1.26908883,101430.0,101420.0,0.04397593]
[1750677926045,1.26908883,101430.0,101420.0,0.07637593]
[1750677929527,1.29268205,101430.0,101420.0,0.07637593]
[1750677930187,1.27426453,101430.0,101420.0,0.07637593]
[1750677930402,1.29269501,101430.0,101420.0,0.07637593]
[1750677930890,1.26910179,101430.0,101420.0,0.07637593]
[1750677933339,1.29269854,101430.0,101420.0,0.07637593]
[1750677933546,1.26910179,101430.0,101420.0,0.07637593]
[1750677934585,1.29270223,101430.0,101420.0,0.07637593]
[1750677936138,0.71410531,101430.0,101420.0,0.07637593]
[1750677936343,1.29270223,101430.0,101420.0,0.07637593]
[1750677938861,0.51198531,101430.0,101420.0,0.07637593]
[1750677939064,1.2927144,101430.0,101420.0,0.07637593]
[1750677940603,1.2926744,101430.0,101420.0,0.07637593]
[1750677941455,0.69047704,101430.0,101420.0,0.07637593]
[1750677941658,1.25063131,101430.0,101420.0,0.07637593]
[1750677941872,1.26907401,101430.0,101420.0,0.07637593]
[1750677942287,1.06699401,101430.0,101420.0,0.07637593]
[1750677942488,1.26907401,101430.0,101420.0,0.07637593]
[1750677943329,1.06094537,101430.0,101420.0,0.07637593]
[1750677943536,0.68918116,101430.0,101420.0,0.07637593]
[1750677943746,1.13911962,101430.0,101420.0,0.07637593]
[1750677944557,1.13911847,101430.0,101420.0,0.07637593]
[1750677947556,1.13911703,101430.0,101420.0,0.07637593]
[1750677954299,1.13904943,101430.0,101420.0,0.07637593]
[1750677954741,0.56052011,101430.0,101420.0,0.07637593]
[1750677954953,1.13904943,101430.0,101420.0,0.07637593]
[1750677956022,1.13904445,101430.0,101420.0,0.07637593]
[1750677960268,0.79904445,101430.0,101420.0,0.07637593]
[1750677961568,0.79904857,101430.0,101420.0,0.07637593]
[1750677962305,1.13904857,101430.0,101420.0,0.07637593]
[1750677963105,1.23934796,101430.0,101420.0,0.04397593]
[1750677963521,1.26893493,101430.0,101420.0,0.04397593]
[1750677965712,1.27879307,101430.0,101420.0,0.04397593]
[1750677965921,1.27879307,101430.0,101420.0,0.01137593]
[1750677967295,1.26896162,101430.0,101420.0,0.01137593]
[1750677967925,1.23937465,101430.0,101420.0,0.01137593]
[1750677968081,1.23937465,101430.0,101420.0,0.04327593]
[1750677970684,1.26301151,101430.0,101420.0,0.04327593]
[1750677971089,1.27286965,101430.0,101420.0,0.04327593]
[1750677971256,1.26301151,101430.0,101420.0,0.04327593]
[1750677971477,1.9194896,101430.0,101420.0,0.01137593]
[1750677971678,1.77637042,101430.0,101420.0,0.01137593]
[1750677971884,1.75664217,101430.0,101420.0,0.01137593]
[1750677972080,1.74740918,101430.0,101420.0,0.01137593]
[1750677972505,1.64710979,101430.0,101420.0,0.01137593]
[1750677972722,1.35784513,101430.0,101420.0,0.01137593]
[1750677972923,1.6471099,101430.0,101420.0,0.01137593]
[1750677973085,1.63725118,101430.0,101420.0,0.01137593]
[1750677973284,1.64648324,101430.0,101420.0,0.01137593]
[1750677973486,1.75664135,101430.0,101420.0,0.01137593]
[1750677973683,1.74678263,101430.0,101420.0,0.01137593]
[1750677974806,1.7414801,101430.0,101420.0,0.01137593]
[1750677975227,1.46207377,101430.0,101420.0,0.01137593]
[1750677976070,1.75133843,101430.0,101420.0,0.01137593]
[1750677976379,1.4719323,101430.0,101420.0,0.01137593]
[1750677976559,1.46207377,101430.0,101420.0,0.01137593]
[1750677976812,1.75133843,101430.0,101420.0,0.01137593]
[1750677977340,1.81588402,101430.0,101420.0,0.01137593]
[1750677977555,1.81588393,101430.0,101420.0,0.01137593]
[1750677978778,1.81588383,101430.0,101420.0,0.01137593]
[1750677979398,1.19130758,101430.0,101420.0,0.01137593]
[1750677979610,1.18144915,101430.0,101420.0,0.01137593]
[1750677979809,1.19130768,101430.0,101420.0,0.01137593]
[1750677980561,1.35190768,101430.0,101420.0,0.01137593]
[1750677981256,1.34204915,101430.0,101420.0,0.01137593]
[1750677981663,1.35190758,101430.0,101420.0,0.01137593]
[1750677982085,1.67219082,101430.0,101420.0,0.01137593]
[1750677982292,1.65694925,101430.0,101420.0,0.01137593]
[1750677982562,1.65694915,101430.0,101420.0,0.01137593]
[1750677982782,1.69041288,101430.0,101420.0,0.01137593]
[1750677982988,1.65694915,101430.0,101420.0,0.01137593]
[1750677983679,1.37754302,101430.0,101420.0,0.01137593]
[1750677984175,0.34,101420.0,101410.0,0.0304]
[1750677984385,0.34,101420.0,101400.0,0.20731566]
[1750677984386,1.50683831,101420.0,101400.0,0.20731566]
[1750677984600,0.92108879,101410.0,101400.0,0.07430463]
[1750677984801,0.89929476,101410.0,101400.0,0.07430463]
[1750677985015,0.92895476,101410.0,101400.0,0.13810463]
[1750677985227,0.93881484,101410.0,101400.0,0.13810463]
[1750677985475,0.94867521,101410.0,101400.0,0.13810463]
[1750677985875,0.93881484,101410.0,101400.0,0.13810463]
[1750677986087,0.94867502,101410.0,101400.0,0.13810463]
[1750677986302,0.95103806,101410.0,101400.0,0.13810463]
[1750677986506,0.9707588,101410.0,101400.0,0.10670463]
[1750677986722,0.98061936,101410.0,101400.0,0.10770463]
[1750677986926,0.98061936,101410.0,101400.0,0.10670463]
[1750677987179,0.98059791,101410.0,101400.0,0.10670463]
[1750677987388,1.10262419,101410.0,101400.0,0.07430463]
[1750677987610,1.00232548,101410.0,101400.0,0.07430463]
[1750677988051,1.19954468,101410.0,101400.0,0.02346988]
[1750677988317,0.02958403,101400.0,101390.0,0.0433]
[1750677988521,1.98764086,101400.0,101390.0,0.0101]
[1750677988722,1.88532674,101400.0,101390.0,0.0101]
[1750677988959,1.85332674,101400.0,101390.0,0.0101]
[1750677989161,1.86318857,101400.0,101390.0,0.0101]
[1750677989378,2.06042722,101400.0,101390.0,0.0101]
[1750677989576,1.86318857,101400.0,101390.0,0.0101]
[1750677989791,2.06042722,101400.0,101390.0,0.0101]
[1750677990044,2.05056617,101400.0,101390.0,0.0111]
[1750677990268,0.65900788,101390.0,101370.0,0.06941524]
[1750677990480,1.24115882,101380.0,101370.0,0.03841524]
[1750677990750,1.46669652,101380.0,101370.0,0.03841524]
[1750677990950,1.49636752,101380.0,101370.0,0.00661524]
[1750677991170,1.50278235,101380.0,101370.0,0.00661524]
[1750677991380,1.47452221,101380.0,101370.0,0.00661524]
[1750677991606,1.58381896,101380.0,101370.0,0.00661524]
[1750677991820,0.61834883,101370.0,101360.0,0.0661]
[1750677992089,0.85975979,101370.0,101360.0,0.0661]
[1750677992304,0.89921132,101370.0,101360.0,0.004]
[1750677992752,0.89921132,101370.0,101360.0,0.0364]
[1750677992974,0.99951061,101370.0,101360.0,0.0364]
[1750677993189,1.01919956,101370.0,101360.0,0.0364]
[1750677993410,1.02906392,101370.0,101360.0,0.0364]
[1750677993816,1.03106392,101370.0,101360.0,0.0374]
[1750677994024,1.02119956,101370.0,101360.0,0.0374]
[1750677994233,1.01133539,101370.0,101360.0,0.0374]
[1750677994444,1.02119956,101370.0,101360.0,0.0374]
[1750677994663,1.03206382,101370.0,101360.0,0.0374]
[1750677995299,1.03206382,101370.0,101360.0,0.005]
[1750677995517,0.35973018,101360.0,101350.0,0.0306]
[1750677995738,0.00986601,101350.0,101340.0,0.062444]
[1750677995960,0.85976407,101350.0,101340.0,0.031144]
[1750677996226,0.84003175,101350.0,101340.0,0.031144]
[1750677996466,0.41933254,101350.0,101340.0,0.061244]
[1750677996689,0.62165254,101350.0,101340.0,0.061244]
[1750677996900,0.36188336,101350.0,101340.0,0.056244]
[1750677997111,0.62178257,101350.0,101340.0,0.056244]
[1750677997313,0.94081572,101350.0,101340.0,0.056244]
[1750677997533,0.94181572,101350.0,101340.0,0.062244]
[1750677997748,0.78050463,101350.0,101340.0,0.062244]
[1750677997951,0.62278257,101350.0,101340.0,0.062244]
[1750677998163,0.32012318,101350.0,101340.0,0.062244]
[1750677998435,0.83280618,101350.0,101340.0,0.062244]
[1750677998851,0.83280618,101350.0,101340.0,0.097044]
[1750677999276,0.83284618,101350.0,101340.0,0.097044]
[1750678000352,0.5434,101350.0,101340.0,0.097044]
[1750678000565,0.49280618,101350.0,101340.0,0.097044]
[1750678000776,0.33188618,101350.0,101340.0,0.097044]
[1750678001206,0.29044618,101350.0,101340.0,0.097044]
[1750678002370,0.001,101350.0,101340.0,0.097044]
[1750678002816,0.001,101350.0,101340.0,0.48925616]
[1750678003029,0.001,101350.0,101340.0,0.48678957]
[1750678003237,0.001,101350.0,101340.0,0.50133042]
[1750678003652,0.001,101350.0,101340.0,0.21188424]
[1750678005247,0.001,101350.0,101340.0,0.50133042]
[1750678007031,0.001,101350.0,101340.0,0.21188424]
[1750678010401,0.00070397,101350.0,101340.0,0.21188424]
[1750678011732,0.00070397,101350.0,101340.0,0.50133042]
[1750678012818,0.34,101360.0,101340.0,0.43443042]
[1750678013051,0.34,101360.0,101350.0,0.16479939]
[1750678013270,0.34,101360.0,101350.0,0.16626578]
[1750678013849,0.49880438,101380.0,101360.0,0.0332]
[1750678013935,0.3468782,101380.0,101360.0,0.0332]
[1750678014152,0.3468782,101380.0,101370.0,0.0299]
[1750678014376,0.63632438,101380.0,101370.0,0.0299]
[1750678015295,0.0068782,101380.0,101370.0,0.0299]
[1750678015513,0.29632438,101380.0,101370.0,0.0299]
[1750678015739,0.29632438,101380.0,101370.0,0.0289]
[1750678016174,0.29632438,101380.0,101370.0,0.0639]
[1750678017776,0.29632438,101380.0,101370.0,0.0659]
[1750678019139,0.00046337,101380.0,101370.0,0.47265236]
[1750678019382,0.00046337,101380.0,101370.0,0.18074024]
[1750678021411,0.28990955,101380.0,101370.0,0.18074024]
[1750678022503,0.00046337,101380.0,101370.0,0.18074024]
[1750678022938,0.00046337,101380.0,101370.0,0.47265214]
[1750678023140,0.00046337,101380.0,101370.0,0.47018642]
[1750678023364,0.00046337,101380.0,101370.0,0.18074024]
[1750678023566,0.00046337,101380.0,101370.0,0.18320595]
[1750678023780,0.00046337,101380.0,101370.0,0.18120595]
[1750678023989,0.00046337,101380.0,101370.0,0.17920595]
[1750678024204,0.00046337,101380.0,101370.0,0.47165213]
[1750678024401,0.00046337,101380.0,101370.0,0.46918642]
[1750678024616,0.00046337,101380.0,101370.0,0.46618642]
[1750678025184,0.00146337,101380.0,101370.0,0.47818642]
[1750678029849,0.00146337,101380.0,101370.0,0.18874024]
[1750678030075,0.00146337,101380.0,101370.0,0.19120589]
[1750678031418,0.00146337,101380.0,101370.0,0.48065207]
[1750678031655,0.00146337,101380.0,101370.0,0.47818642]
[1750678033435,0.00146337,101380.0,101370.0,0.18874024]
[1750678033614,0.00146337,101380.0,101370.0,0.48065202]
[1750678033801,0.00146337,101380.0,101370.0,0.47818642]
[1750678035785,0.00146337,101380.0,101370.0,0.48805117]
[1750678035992,0.00146337,101380.0,101370.0,0.69521305]
[1750678036195,0.00146337,101380.0,101370.0,0.7050777]
[1750678036627,0.00146337,101380.0,101370.0,0.71494225]
[1750678036840,0.00146337,101380.0,101370.0,0.69521305]
[1750678037968,0.00146337,101380.0,101370.0,0.73665305]
[1750678038181,0.00146337,101380.0,101370.0,0.51962642]
[1750678039227,0.00146337,101380.0,101370.0,0.23018024]
[1750678039580,0.00146337,101380.0,101370.0,0.51962642]
[1750678040308,0.00150337,101380.0,101370.0,0.51962642]
[1750678041349,0.28944618,101400.0,101390.0,0.07744085]
[1750678041638,0.28944618,101400.0,101390.0,0.17783139]
[1750678042487,0.29605802,101400.0,101390.0,0.17883139]
[1750678042911,0.29605802,101400.0,101390.0,0.18083139]
[1750678046417,0.29609802,101400.0,101390.0,0.18083139]
[1750678047685,4e-05,101400.0,101390.0,0.18083139]
[1750678047899,4e-05,101400.0,101390.0,0.18329676]
[1750678049199,4e-05,101400.0,101390.0,0.18083139]
[1750678049641,4e-05,101400.0,101390.0,0.18329664]
[1750678052146,4e-05,101400.0,101390.0,0.18229664]
[1750678052570,4e-05,101400.0,101390.0,0.18629664]
[1750678052724,4e-05,101400.0,101390.0,0.18429664]
[1750678052923,0.00104,101400.0,101390.0,0.19129664]
[1750678053724,0.00104,101400.0,101390.0,0.35185664]
[1750678053929,0.00104,101400.0,101390.0,0.34939139]
[1750678057246,0.29048618,101400.0,101390.0,0.34939139]
[1750678058113,0.29048618,101400.0,101390.0,0.18883139]
[1750678060923,0.00104,101400.0,101390.0,0.19129676]
[1750678062406,0.00104,101400.0,101390.0,0.48074294]
[1750678062628,0.00104,101400.0,101390.0,0.47827757]
[1750678063077,0.00104,101400.0,101390.0,0.68281511]
[1750678063295,0.00104,101400.0,101390.0,0.5349297]
[1750678063514,0.28944618,101430.0,101410.0,0.0634]
[1750678063756,0.28944618,101420.0,101410.0,0.17824024]
[1750678063982,0.28944618,101430.0,101410.0,0.14970515]
[1750678064216,0.62944618,101430.0,101420.0,0.03]
[1750678064637,0.62944618,101430.0,101410.0,0.17624024]
[1750678064858,0.28944618,101420.0,101410.0,0.17624024]
[1750678065550,0.28944618,101420.0,101410.0,0.17824024]
[1750678066871,0.29144618,101420.0,101410.0,0.17824024]
[1750678072880,0.29144618,101420.0,101410.0,0.002]
[1750678073097,0.29144618,101420.0,101410.0,0.0334]
[1750678075967,0.29144618,101420.0,101410.0,0.0636]
[1750678076198,0.29144618,101420.0,101410.0,0.002]
[1750678076199,0.68904618,101420.0,101410.0,0.002]
[1750678077544,0.47708568,101420.0,101410.0,0.002]
[1750678077783,0.68704618,101420.0,101410.0,0.002]
[1750678083981,0.3976,101420.0,101410.0,0.002]
[1750678084198,0.68704618,101420.0,101410.0,0.002]
[1750678086594,0.66184618,101420.0,101410.0,0.002]
[1750678087053,0.3724,101420.0,101410.0,0.002]
[1750678087279,0.66184618,101420.0,101410.0,0.002]
[1750678089981,0.62944618,101420.0,101410.0,0.002]
[1750678091281,0.62944618,101420.0,101410.0,0.0329]
[1750678098010,0.62944618,101420.0,101410.0,0.002]
[1750678098219,0.82166618,101420.0,101410.0,0.002]
[1750678098854,0.78996618,101420.0,101410.0,0.002]
[1750678101298,0.78996618,101420.0,101410.0,0.0329]
[1750678104410,0.78996618,101420.0,101410.0,0.0642]
[1750678104655,0.34,101420.0,101410.0,0.10229939]
[1750678105117,0.34,101420.0,101410.0,0.16469939]
[1750678105332,0.62944618,101420.0,101410.0,0.16469939]